[Event "Titled Tuesday Blitz August 23 Early 2022"]
[White "Shirov, Alexei"]
[Black "Borgaonkar Akshay"]
[WhiteFideId "2209390"]
[BlackFideId "25639110"]
[WhiteElo "2678"]
[BlackElo "1755"]
[Result "1-0"]
[Round "06"]
[TimeControl "180+1"]
[Date "2022.08.23"]
[WhiteClock "0:00:54"]
[BlackClock "0:00:46"]

1. e4 {[%clk 0:03:00]}  c5 {[%clk 0:02:59]} 2. Nf3 {[%clk 0:03:00]}  e6 {[%clk 0:03:00]} 3. d4 {[%clk 0:02:59]}  cxd4 {[%clk 0:03:00]} 4. Nxd4 {[%clk 0:02:59]}  Nc6 {[%clk 0:03:01]} 5. Nc3 {[%clk 0:02:59]}  Qc7 {[%clk 0:03:01]} 6. Be3 {[%clk 0:02:59]}  a6 {[%clk 0:03:01]} 7. Qf3 {[%clk 0:02:59]}  Nf6 {[%clk 0:03:01]} 8. O-O-O {[%clk 0:02:58]}  Ne5 {[%clk 0:03:01]} 9. Qg3 {[%clk 0:02:57]}  b5 {[%clk 0:03:02]} 10. f4 {[%clk 0:02:55]}  Neg4 {[%clk 0:03:00]} 11. Bg1 {[%clk 0:02:54]}  h5 {[%clk 0:02:59]} 12. h3 {[%clk 0:02:54]}  h4 {[%clk 0:02:56]} 13. Qf3 {[%clk 0:02:51]}  Nh6 {[%clk 0:02:47]} 14. Bd3 {[%clk 0:02:46]}  Bb7 {[%clk 0:02:46]} 15. Bf2 {[%clk 0:02:43]}  Rc8 {[%clk 0:02:42]} 16. Kb1 {[%clk 0:02:38]}  b4 {[%clk 0:02:33]} 17. Nce2 {[%clk 0:02:37]}  d5 {[%clk 0:02:33]} 18. e5 {[%clk 0:02:34]}  Ne4 {[%clk 0:02:33]} 19. Bxh4 {[%clk 0:02:30]}  Nf5 {[%clk 0:02:30]} 20. Be1 {[%clk 0:02:11]}  Nxd4 {[%clk 0:02:24]} 21. Nxd4 {[%clk 0:02:10]}  Bc5 {[%clk 0:02:25]} 22. Bxe4 {[%clk 0:02:07]}  dxe4 {[%clk 0:02:24]} 23. Qe2 {[%clk 0:02:07]}  Bd5 {[%clk 0:02:17]} 24. Nb3 {[%clk 0:01:58]}  Be7 {[%clk 0:02:12]} 25. Rc1 {[%clk 0:01:45]}  a5 {[%clk 0:02:11]} 26. Qb5+ {[%clk 0:01:43]}  Kf8 {[%clk 0:02:09]} 27. Qxa5 {[%clk 0:01:40]}  Qb7 {[%clk 0:01:59]} 28. Bf2 {[%clk 0:01:35]}  Ra8 {[%clk 0:01:57]} 29. Qb6 {[%clk 0:01:33]}  Qd7 {[%clk 0:01:53]} 30. Bc5 {[%clk 0:01:31]}  Qa4 {[%clk 0:01:35]} 31. Bxe7+ {[%clk 0:01:29]}  Kxe7 {[%clk 0:01:35]} 32. Qc5+ {[%clk 0:01:23]}  Ke8 {[%clk 0:01:31]} 33. c4 {[%clk 0:01:22]}  bxc3 {[%clk 0:01:14]} 34. Rxc3 {[%clk 0:01:20]}  Qxa2+ {[%clk 0:01:12]} 35. Kc2 {[%clk 0:01:19]}  g6 {[%clk 0:01:00]} 36. Rd1 {[%clk 0:01:15]}  Rb8 {[%clk 0:00:56]} 37. Rxd5 {[%clk 0:01:13]}  exd5 {[%clk 0:00:56]} 38. Qc6+ {[%clk 0:01:07]}  Kf8 {[%clk 0:00:53]} 39. Qf6 {[%clk 0:00:58]}  Kg8 {[%clk 0:00:54]} 40. e6 {[%clk 0:00:57]}  fxe6 {[%clk 0:00:47]} 41. Qxg6+ {[%clk 0:00:56]}  Kf8 {[%clk 0:00:48]} 42. Qf6+ {[%clk 0:00:56]}  Ke8 {[%clk 0:00:46]} 43. Qxh8+ {[%clk 0:00:54]} 1-0


[Site "https://www.chess.com"]

[Event "Titled Tuesday Blitz August 23 Early 2022"]
[White "Solon, Nathan"]
[Black "Livaic, Leon"]
[WhiteFideId "2017229"]
[BlackFideId "14531534"]
[WhiteElo "2648"]
[BlackElo "2540"]
[Result "0-1"]
[Round "06"]
[TimeControl "180+1"]
[Date "2022.08.23"]
[WhiteClock "0:00:07"]
[BlackClock "0:00:07"]

1. e4 {[%clk 0:03:00]}  Nf6 {[%clk 0:03:00]} 2. d3 {[%clk 0:03:00]}  c5 {[%clk 0:02:58]} 3. Nf3 {[%clk 0:03:00]}  Nc6 {[%clk 0:02:58]} 4. g3 {[%clk 0:03:00]}  d6 {[%clk 0:02:57]} 5. Bg2 {[%clk 0:03:00]}  g6 {[%clk 0:02:57]} 6. O-O {[%clk 0:03:00]}  Bg7 {[%clk 0:02:57]} 7. c3 {[%clk 0:02:59]}  O-O {[%clk 0:02:58]} 8. Re1 {[%clk 0:02:58]}  Rb8 {[%clk 0:02:58]} 9. d4 {[%clk 0:02:58]}  cxd4 {[%clk 0:02:57]} 10. cxd4 {[%clk 0:02:58]}  Bg4 {[%clk 0:02:57]} 11. h3 {[%clk 0:02:43]}  Bxf3 {[%clk 0:02:57]} 12. Bxf3 {[%clk 0:02:44]}  Nd7 {[%clk 0:02:57]} 13. Be3 {[%clk 0:02:44]}  Qb6 {[%clk 0:02:43]} 14. d5 {[%clk 0:02:25]}  Nd4 {[%clk 0:02:41]} 15. Nd2 {[%clk 0:02:23]}  Qxb2 {[%clk 0:02:38]} 16. Rb1 {[%clk 0:02:16]}  Qxa2 {[%clk 0:02:27]} 17. Nb3 {[%clk 0:01:36]}  Nxf3+ {[%clk 0:02:17]} 18. Qxf3 {[%clk 0:01:36]}  Ne5 {[%clk 0:02:16]} 19. Qd1 {[%clk 0:01:36]}  Rfc8 {[%clk 0:02:13]} 20. Ra1 {[%clk 0:01:34]}  Qc2 {[%clk 0:01:40]} 21. Rxa7 {[%clk 0:01:33]}  Qxe4 {[%clk 0:01:35]} 22. Nd2 {[%clk 0:01:10]}  Qxd5 {[%clk 0:01:34]} 23. Qb1 {[%clk 0:01:09]}  h5 {[%clk 0:01:19]} 24. h4 {[%clk 0:01:07]}  Bf6 {[%clk 0:01:17]} 25. Rd1 {[%clk 0:01:03]}  Qe6 {[%clk 0:01:05]} 26. Ne4 {[%clk 0:01:01]}  Bg7 {[%clk 0:01:05]} 27. Ng5 {[%clk 0:01:00]}  Qf5 {[%clk 0:01:05]} 28. Rxb7 {[%clk 0:00:54]}  Qxb1 {[%clk 0:01:05]} 29. Rdxb1 {[%clk 0:00:55]}  Rxb7 {[%clk 0:01:06]} 30. Rxb7 {[%clk 0:00:56]}  Nc6 {[%clk 0:01:00]} 31. Kg2 {[%clk 0:00:53]}  d5 {[%clk 0:01:00]} 32. Bc5 {[%clk 0:00:49]}  Bf6 {[%clk 0:01:00]} 33. Nf3 {[%clk 0:00:48]}  e6 {[%clk 0:00:57]} 34. Bd6 {[%clk 0:00:47]}  Kg7 {[%clk 0:00:56]} 35. Ng5 {[%clk 0:00:45]}  Bxg5 {[%clk 0:00:53]} 36. hxg5 {[%clk 0:00:46]}  Rd8 {[%clk 0:00:45]} 37. Bc5 {[%clk 0:00:37]}  d4 {[%clk 0:00:44]} 38. Rc7 {[%clk 0:00:36]}  d3 {[%clk 0:00:44]} 39. Be3 {[%clk 0:00:29]}  Nd4 {[%clk 0:00:34]} 40. Bd2 {[%clk 0:00:20]}  Nb3 {[%clk 0:00:31]} 41. Bc3+ {[%clk 0:00:20]}  Kg8 {[%clk 0:00:31]} 42. Bf6 {[%clk 0:00:16]}  d2 {[%clk 0:00:28]} 43. Bxd8 {[%clk 0:00:16]}  d1=Q {[%clk 0:00:29]} 44. Bf6 {[%clk 0:00:16]}  Qd5+ {[%clk 0:00:20]} 45. Kh2 {[%clk 0:00:16]}  Qa8 {[%clk 0:00:15]} 46. Rd7 {[%clk 0:00:15]}  Nc5 {[%clk 0:00:14]} 47. Rd8+ {[%clk 0:00:16]}  Qxd8 {[%clk 0:00:15]} 48. Bxd8 {[%clk 0:00:17]}  Ne4 {[%clk 0:00:15]} 49. f3 {[%clk 0:00:14]}  Nd6 {[%clk 0:00:15]} 50. Kg2 {[%clk 0:00:14]}  Kf8 {[%clk 0:00:15]} 51. Bf6 {[%clk 0:00:13]}  Ke8 {[%clk 0:00:15]} 52. Kh3 {[%clk 0:00:11]}  Kd7 {[%clk 0:00:15]} 53. g4 {[%clk 0:00:12]}  hxg4+ {[%clk 0:00:15]} 54. Kxg4 {[%clk 0:00:12]}  Kc6 {[%clk 0:00:15]} 55. Kf4 {[%clk 0:00:12]}  Kd5 {[%clk 0:00:16]} 56. Be7 {[%clk 0:00:10]}  e5+ {[%clk 0:00:16]} 57. Kg4 {[%clk 0:00:10]}  Nf5 {[%clk 0:00:16]} 58. Bf6 {[%clk 0:00:10]}  e4 {[%clk 0:00:14]} 59. fxe4+ {[%clk 0:00:08]}  Kxe4 {[%clk 0:00:14]} 60. Bd8 {[%clk 0:00:09]}  Ne3+ {[%clk 0:00:15]} 61. Kg3 {[%clk 0:00:08]}  Kf5 {[%clk 0:00:15]} 62. Be7 {[%clk 0:00:07]}  Nd5 {[%clk 0:00:11]} 63. Bd8 {[%clk 0:00:08]}  Nf4 {[%clk 0:00:11]} 64. Kh4 {[%clk 0:00:06]}  Ne6 {[%clk 0:00:11]} 65. Be7 {[%clk 0:00:07]}  Kf4 {[%clk 0:00:12]} 66. Bf6 {[%clk 0:00:07]}  Kf3 {[%clk 0:00:12]} 67. Be7 {[%clk 0:00:07]}  Nd4 {[%clk 0:00:08]} 68. Bf6 {[%clk 0:00:08]}  Nf5+ {[%clk 0:00:09]} 69. Kh3 {[%clk 0:00:08]}  Kf4 {[%clk 0:00:09]} 70. Bd8 {[%clk 0:00:08]}  Nd4 {[%clk 0:00:07]} 71. Bf6 {[%clk 0:00:09]}  Nf3 {[%clk 0:00:07]} 72. Kg2 {[%clk 0:00:05]}  Nxg5 {[%clk 0:00:07]} 73. Bg7 {[%clk 0:00:05]}  Ne4 {[%clk 0:00:07]} 74. Bh6+ {[%clk 0:00:06]}  g5 {[%clk 0:00:07]} 75. Kh3 {[%clk 0:00:07]}  Kf5 {[%clk 0:00:07]} 76. Kg2 {[%clk 0:00:07]}  Kg4 {[%clk 0:00:06]} 77. Bf8 {[%clk 0:00:06]}  f5 {[%clk 0:00:07]} 78. Bb4 {[%clk 0:00:07]}  f4 {[%clk 0:00:08]} 79. Be1 {[%clk 0:00:07]}  f3+ {[%clk 0:00:07]} 80. Kf1 {[%clk 0:00:08]}  Kf4 {[%clk 0:00:07]} 81. Ba5 {[%clk 0:00:07]}  g4 {[%clk 0:00:07]} 82. Bc7+ {[%clk 0:00:08]}  Kf5 {[%clk 0:00:06]} 83. Bb8 {[%clk 0:00:08]}  g3 {[%clk 0:00:07]} 84. Kg1 {[%clk 0:00:07]}  Kg4 {[%clk 0:00:07]} 85. Kf1 {[%clk 0:00:07]}  Nd2+ {[%clk 0:00:06]} 86. Kg1 {[%clk 0:00:07]}  f2+ {[%clk 0:00:06]} 87. Kg2 {[%clk 0:00:07]}  f1=Q# {[%clk 0:00:07]} 0-1


[Site "https://www.chess.com"]

[Event "Titled Tuesday Blitz August 23 Early 2022"]
[White "Starozhilov, Leonid"]
[Black "Taboas Rodriguez, Daniel"]
[WhiteFideId "14106752"]
[BlackFideId "2208466"]
[WhiteElo "2414"]
[BlackElo "2429"]
[Result "1-0"]
[Round "06"]
[TimeControl "180+1"]
[Date "2022.08.23"]
[WhiteClock "0:00:03"]
[BlackClock "0:00:11"]

1. e4 {[%clk 0:03:00]}  e5 {[%clk 0:02:59]} 2. Nf3 {[%clk 0:03:00]}  Nc6 {[%clk 0:02:59]} 3. Bc4 {[%clk 0:03:00]}  Nf6 {[%clk 0:02:59]} 4. d3 {[%clk 0:03:01]}  Bc5 {[%clk 0:02:58]} 5. Nc3 {[%clk 0:03:00]}  d6 {[%clk 0:02:58]} 6. Be3 {[%clk 0:02:58]}  Bxe3 {[%clk 0:02:57]} 7. fxe3 {[%clk 0:02:59]}  Be6 {[%clk 0:02:58]} 8. Bb3 {[%clk 0:02:58]}  O-O {[%clk 0:02:57]} 9. O-O {[%clk 0:02:58]}  d5 {[%clk 0:02:49]} 10. exd5 {[%clk 0:02:57]}  Nxd5 {[%clk 0:02:50]} 11. Nxd5 {[%clk 0:02:48]}  Bxd5 {[%clk 0:02:51]} 12. e4 {[%clk 0:02:48]}  Bxb3 {[%clk 0:02:51]} 13. axb3 {[%clk 0:02:48]}  a5 {[%clk 0:02:46]} 14. Qd2 {[%clk 0:02:47]}  b6 {[%clk 0:02:45]} 15. Kh1 {[%clk 0:02:47]}  Qe7 {[%clk 0:02:43]} 16. Rf2 {[%clk 0:02:46]}  Rad8 {[%clk 0:02:43]} 17. Raf1 {[%clk 0:02:45]}  Nd4 {[%clk 0:02:40]} 18. Nxd4 {[%clk 0:02:41]}  Rxd4 {[%clk 0:02:41]} 19. Rf5 {[%clk 0:02:36]}  f6 {[%clk 0:02:40]} 20. g4 {[%clk 0:02:33]}  g6 {[%clk 0:02:33]} 21. R5f3 {[%clk 0:02:32]}  Rdd8 {[%clk 0:02:26]} 22. Qh6 {[%clk 0:02:27]}  Rf7 {[%clk 0:02:25]} 23. h4 {[%clk 0:02:20]}  Qf8 {[%clk 0:02:22]} 24. Qe3 {[%clk 0:02:08]}  Qe7 {[%clk 0:02:14]} 25. Kg2 {[%clk 0:02:04]}  Qe6 {[%clk 0:02:03]} 26. Kg3 {[%clk 0:01:51]}  Rdf8 {[%clk 0:02:03]} 27. Qh6 {[%clk 0:01:48]}  Rg7 {[%clk 0:02:02]} 28. g5 {[%clk 0:01:36]}  Rgf7 {[%clk 0:01:56]} 29. gxf6 {[%clk 0:01:30]}  Rxf6 {[%clk 0:01:56]} 30. Qxf8+ {[%clk 0:01:29]}  Rxf8 {[%clk 0:01:55]} 31. Rxf8+ {[%clk 0:01:29]}  Kg7 {[%clk 0:01:56]} 32. h5 {[%clk 0:01:09]}  gxh5 {[%clk 0:01:50]} 33. R8f5 {[%clk 0:01:03]}  h4+ {[%clk 0:01:03]} 34. Kxh4 {[%clk 0:00:49]}  Qe7+ {[%clk 0:00:46]} 35. Kg4 {[%clk 0:00:48]}  Qe6 {[%clk 0:00:44]} 36. Rf2 {[%clk 0:00:37]}  Kg6 {[%clk 0:00:38]} 37. Kf3 {[%clk 0:00:28]}  Qe7 {[%clk 0:00:22]} 38. Rg2+ {[%clk 0:00:26]}  Kh6 {[%clk 0:00:21]} 39. Ke2 {[%clk 0:00:22]}  Qh4 {[%clk 0:00:20]} 40. Rff2 {[%clk 0:00:19]}  Qe7 {[%clk 0:00:15]} 41. Rf3 {[%clk 0:00:18]}  Qh4 {[%clk 0:00:15]} 42. Rgg3 {[%clk 0:00:08]}  Qh2+ {[%clk 0:00:14]} 43. Kd1 {[%clk 0:00:09]}  Qh1+ {[%clk 0:00:13]} 44. Kd2 {[%clk 0:00:09]}  Qh2+ {[%clk 0:00:12]} 45. Kc3 {[%clk 0:00:10]}  Qe2 {[%clk 0:00:12]} 46. Re3 {[%clk 0:00:07]}  Qf2 {[%clk 0:00:11]} 47. Rgf3 {[%clk 0:00:03]} 1-0


[Site "https://www.chess.com"]

[Event "Titled Tuesday Blitz August 23 Early 2022"]
[White "Tsaruk, Maksim"]
[Black "Deac, Bogdan-Daniel"]
[WhiteFideId "13511173"]
[BlackFideId "1226380"]
[WhiteElo "2178"]
[BlackElo "2648"]
[Result "0-1"]
[Round "06"]
[TimeControl "180+1"]
[Date "2022.08.23"]
[WhiteClock "0:00:02"]
[BlackClock "0:00:05"]

1. e4 {[%clk 0:02:54]}  c6 {[%clk 0:03:00]} 2. d4 {[%clk 0:02:52]}  d5 {[%clk 0:03:00]} 3. Nd2 {[%clk 0:02:48]}  Qc7 {[%clk 0:02:56]} 4. Bd3 {[%clk 0:02:45]}  dxe4 {[%clk 0:02:43]} 5. Nxe4 {[%clk 0:02:44]}  Bf5 {[%clk 0:02:43]} 6. Nf3 {[%clk 0:02:43]}  e6 {[%clk 0:02:41]} 7. O-O {[%clk 0:02:40]}  Bxe4 {[%clk 0:02:34]} 8. Bxe4 {[%clk 0:02:40]}  Nf6 {[%clk 0:02:35]} 9. Bd3 {[%clk 0:02:41]}  Bd6 {[%clk 0:02:35]} 10. Re1 {[%clk 0:02:41]}  Nbd7 {[%clk 0:02:35]} 11. Qe2 {[%clk 0:02:38]}  a5 {[%clk 0:02:05]} 12. Ne5 {[%clk 0:02:36]}  O-O {[%clk 0:02:03]} 13. Bf4 {[%clk 0:02:25]}  a4 {[%clk 0:01:56]} 14. a3 {[%clk 0:02:22]}  Nd5 {[%clk 0:01:15]} 15. Bg3 {[%clk 0:02:21]}  Bxe5 {[%clk 0:01:14]} 16. dxe5 {[%clk 0:02:21]}  Nc5 {[%clk 0:01:03]} 17. c4 {[%clk 0:01:59]}  Nxd3 {[%clk 0:00:49]} 18. Qxd3 {[%clk 0:02:00]}  Ne7 {[%clk 0:00:48]} 19. Qd6 {[%clk 0:01:39]}  Qd8 {[%clk 0:00:45]} 20. Rad1 {[%clk 0:01:26]}  Nf5 {[%clk 0:00:43]} 21. Qb4 {[%clk 0:00:58]}  Qc7 {[%clk 0:00:42]} 22. Bf4 {[%clk 0:00:58]}  c5 {[%clk 0:00:37]} 23. Qb5 {[%clk 0:00:58]}  Nd4 {[%clk 0:00:36]} 24. Rxd4 {[%clk 0:00:52]}  cxd4 {[%clk 0:00:37]} 25. Bd2 {[%clk 0:00:40]}  Rfc8 {[%clk 0:00:32]} 26. Rc1 {[%clk 0:00:39]}  Qc6 {[%clk 0:00:29]} 27. Qb4 {[%clk 0:00:36]}  Qe4 {[%clk 0:00:28]} 28. Qd6 {[%clk 0:00:24]}  Qe2 {[%clk 0:00:23]} 29. Bb4 {[%clk 0:00:16]}  Rxc4 {[%clk 0:00:20]} 30. Re1 {[%clk 0:00:15]}  Qc2 {[%clk 0:00:15]} 31. h4 {[%clk 0:00:11]}  h5 {[%clk 0:00:12]} 32. Qd7 {[%clk 0:00:08]}  d3 {[%clk 0:00:08]} 33. Qxb7 {[%clk 0:00:08]}  Rd8 {[%clk 0:00:08]} 34. Qe7 {[%clk 0:00:08]}  Rcc8 {[%clk 0:00:07]} 35. Qg5 {[%clk 0:00:01]}  d2 {[%clk 0:00:07]} 36. Bxd2 {[%clk 0:00:02]}  Qxd2 {[%clk 0:00:07]} 37. Re3 {[%clk 0:00:03]}  Qd1+ {[%clk 0:00:04]} 38. Kh2 {[%clk 0:00:03]}  Qg4 {[%clk 0:00:04]} 39. Qe7 {[%clk 0:00:03]}  Re8 {[%clk 0:00:05]} 40. Qb7 {[%clk 0:00:01]}  Qxh4+ {[%clk 0:00:05]} 41. Rh3 {[%clk 0:00:02]}  Qf4+ {[%clk 0:00:05]} 0-1


[Site "https://www.chess.com"]

[Event "Titled Tuesday Blitz August 23 Early 2022"]
[White "Xu, Yi"]
[Black "Derjabin, Ilja"]
[WhiteFideId "8605564"]
[BlackFideId "14104768"]
[WhiteElo "2471"]
[BlackElo "2341"]
[Result "1-0"]
[Round "06"]
[TimeControl "180+1"]
[Date "2022.08.23"]
[WhiteClock "0:00:06"]
[BlackClock "0:00:01"]

1. e4 {[%clk 0:03:00]}  e6 {[%clk 0:02:57]} 2. d4 {[%clk 0:03:00]}  d5 {[%clk 0:02:57]} 3. e5 {[%clk 0:02:59]}  c5 {[%clk 0:02:57]} 4. c3 {[%clk 0:02:59]}  Qa5 {[%clk 0:02:57]} 5. a3 {[%clk 0:02:41]}  Nc6 {[%clk 0:02:46]} 6. Nf3 {[%clk 0:02:27]}  c4 {[%clk 0:02:42]} 7. h4 {[%clk 0:02:21]}  h6 {[%clk 0:02:39]} 8. Nbd2 {[%clk 0:02:16]}  b5 {[%clk 0:02:34]} 9. h5 {[%clk 0:02:00]}  b4 {[%clk 0:02:29]} 10. cxb4 {[%clk 0:01:52]}  Bxb4 {[%clk 0:02:27]} 11. Be2 {[%clk 0:01:46]}  c3 {[%clk 0:02:01]} 12. bxc3 {[%clk 0:01:46]}  Bxc3 {[%clk 0:02:01]} 13. Rb1 {[%clk 0:01:47]}  Nge7 {[%clk 0:01:57]} 14. O-O {[%clk 0:01:46]}  O-O {[%clk 0:01:31]} 15. Nb3 {[%clk 0:01:42]}  Qd8 {[%clk 0:01:08]} 16. Qd3 {[%clk 0:01:28]}  Ba5 {[%clk 0:01:08]} 17. Nh4 {[%clk 0:01:29]}  Bb6 {[%clk 0:00:59]} 18. Qg3 {[%clk 0:01:24]}  Kh8 {[%clk 0:00:58]} 19. Be3 {[%clk 0:01:23]}  Nf5 {[%clk 0:00:53]} 20. Nxf5 {[%clk 0:01:22]}  exf5 {[%clk 0:00:54]} 21. Rfc1 {[%clk 0:01:15]}  Ne7 {[%clk 0:00:48]} 22. Nc5 {[%clk 0:01:00]}  Be6 {[%clk 0:00:48]} 23. Bf4 {[%clk 0:00:52]}  Rc8 {[%clk 0:00:46]} 24. Qe3 {[%clk 0:00:50]}  Kg8 {[%clk 0:00:38]} 25. Ba6 {[%clk 0:00:50]}  Rc7 {[%clk 0:00:32]} 26. a4 {[%clk 0:00:34]}  Bxc5 {[%clk 0:00:32]} 27. dxc5 {[%clk 0:00:33]}  d4 {[%clk 0:00:32]} 28. Qg3 {[%clk 0:00:33]}  Kh8 {[%clk 0:00:26]} 29. Bd2 {[%clk 0:00:27]}  Nd5 {[%clk 0:00:23]} 30. Ba5 {[%clk 0:00:26]}  Nc3 {[%clk 0:00:17]} 31. Rxc3 {[%clk 0:00:18]}  dxc3 {[%clk 0:00:17]} 32. Qxc3 {[%clk 0:00:18]}  Qd7 {[%clk 0:00:08]} 33. Bxc7 {[%clk 0:00:18]}  Qxc7 {[%clk 0:00:09]} 34. c6 {[%clk 0:00:18]}  Bd5 {[%clk 0:00:08]} 35. Rc1 {[%clk 0:00:18]}  f4 {[%clk 0:00:06]} 36. Qd4 {[%clk 0:00:13]}  Be6 {[%clk 0:00:04]} 37. Qxf4 {[%clk 0:00:13]}  Qa5 {[%clk 0:00:02]} 38. Bb7 {[%clk 0:00:13]}  Qc7 {[%clk 0:00:01]} 39. Qd4 {[%clk 0:00:12]}  Rb8 {[%clk 0:00:02]} 40. Kh2 {[%clk 0:00:06]}  Kh7 {[%clk 0:00:01]} 41. Qd6 {[%clk 0:00:06]} 1-0


[Site "https://www.chess.com"]

[Event "Titled Tuesday Blitz August 23 Early 2022"]
[White "Aggelis, Nikolaos"]
[Black "Csonka, Balazs"]
[WhiteFideId "4213220"]
[BlackFideId "742910"]
[WhiteElo "2154"]
[BlackElo "2404"]
[Result "1-0"]
[Round "07"]
[TimeControl "180+1"]
[Date "2022.08.23"]
[WhiteClock "0:00:12"]
[BlackClock "0:00:05"]

1. d4 {[%clk 0:02:57]}  Nf6 {[%clk 0:02:58]} 2. Nf3 {[%clk 0:02:56]}  e6 {[%clk 0:02:56]} 3. g3 {[%clk 0:02:53]}  b6 {[%clk 0:02:54]} 4. Bg2 {[%clk 0:02:53]}  Bb7 {[%clk 0:02:55]} 5. c4 {[%clk 0:02:50]}  c5 {[%clk 0:02:50]} 6. d5 {[%clk 0:02:47]}  exd5 {[%clk 0:02:50]} 7. Nh4 {[%clk 0:02:46]}  g6 {[%clk 0:01:56]} 8. Nc3 {[%clk 0:02:44]}  Bg7 {[%clk 0:01:52]} 9. O-O {[%clk 0:02:22]}  O-O {[%clk 0:01:47]} 10. Bg5 {[%clk 0:02:22]}  Qe8 {[%clk 0:01:42]} 11. Bxf6 {[%clk 0:02:13]}  Bxf6 {[%clk 0:01:43]} 12. Nxd5 {[%clk 0:02:14]}  Bxd5 {[%clk 0:01:38]} 13. Qxd5 {[%clk 0:02:08]}  Nc6 {[%clk 0:01:37]} 14. Rad1 {[%clk 0:02:02]}  Rd8 {[%clk 0:01:28]} 15. Rd2 {[%clk 0:01:58]}  Bxh4 {[%clk 0:00:59]} 16. gxh4 {[%clk 0:01:57]}  Nd4 {[%clk 0:00:37]} 17. e3 {[%clk 0:01:50]}  Nf5 {[%clk 0:00:37]} 18. h5 {[%clk 0:01:50]}  Qe7 {[%clk 0:00:36]} 19. Rfd1 {[%clk 0:01:36]}  Kg7 {[%clk 0:00:33]} 20. Qe4 {[%clk 0:01:30]}  Qf6 {[%clk 0:00:23]} 21. Qf4 {[%clk 0:01:16]}  Rfe8 {[%clk 0:00:10]} 22. b3 {[%clk 0:01:08]}  d6 {[%clk 0:00:05]} 23. Be4 {[%clk 0:01:01]}  Qh4 {[%clk 0:00:05]} 24. Bxf5 {[%clk 0:00:51]}  Qxf4 {[%clk 0:00:04]} 25. exf4 {[%clk 0:00:52]}  gxf5 {[%clk 0:00:04]} 26. Rxd6 {[%clk 0:00:53]}  Rxd6 {[%clk 0:00:03]} 27. Rxd6 {[%clk 0:00:52]}  h6 {[%clk 0:00:02]} 28. Rd7 {[%clk 0:00:31]}  a5 {[%clk 0:00:02]} 29. Rb7 {[%clk 0:00:28]}  Re2 {[%clk 0:00:03]} 30. a4 {[%clk 0:00:27]}  Re4 {[%clk 0:00:02]} 31. Rxb6 {[%clk 0:00:26]}  Rxf4 {[%clk 0:00:02]} 32. Rb5 {[%clk 0:00:27]}  Rf3 {[%clk 0:00:03]} 33. Rxa5 {[%clk 0:00:23]}  Rxb3 {[%clk 0:00:03]} 34. Rxc5 {[%clk 0:00:24]}  Ra3 {[%clk 0:00:02]} 35. a5 {[%clk 0:00:23]}  Ra4 {[%clk 0:00:03]} 36. Rxf5 {[%clk 0:00:23]}  Rxc4 {[%clk 0:00:02]} 37. Rb5 {[%clk 0:00:22]}  Ra4 {[%clk 0:00:03]} 38. Kg2 {[%clk 0:00:21]}  Ra3 {[%clk 0:00:03]} 39. f3 {[%clk 0:00:20]}  Kh7 {[%clk 0:00:03]} 40. Kg3 {[%clk 0:00:20]}  Kg7 {[%clk 0:00:04]} 41. h4 {[%clk 0:00:20]}  Ra4 {[%clk 0:00:03]} 42. Kf2 {[%clk 0:00:19]}  Ra3 {[%clk 0:00:03]} 43. Ke2 {[%clk 0:00:20]}  Ra4 {[%clk 0:00:03]} 44. Ke3 {[%clk 0:00:19]}  Rxh4 {[%clk 0:00:03]} 45. a6 {[%clk 0:00:19]}  Ra4 {[%clk 0:00:03]} 46. Rb6 {[%clk 0:00:20]}  Ra5 {[%clk 0:00:03]} 47. Kd4 {[%clk 0:00:18]}  Rxh5 {[%clk 0:00:03]} 48. Kc4 {[%clk 0:00:17]}  Ra5 {[%clk 0:00:03]} 49. Kb4 {[%clk 0:00:18]}  Ra1 {[%clk 0:00:03]} 50. Kb5 {[%clk 0:00:18]}  h5 {[%clk 0:00:03]} 51. Rc6 {[%clk 0:00:18]}  h4 {[%clk 0:00:03]} 52. Rc4 {[%clk 0:00:18]}  h3 {[%clk 0:00:02]} 53. Rh4 {[%clk 0:00:19]}  Rb1+ {[%clk 0:00:02]} 54. Kc6 {[%clk 0:00:19]}  Ra1 {[%clk 0:00:01]} 55. Kb7 {[%clk 0:00:19]}  Rb1+ {[%clk 0:00:02]} 56. Kc7 {[%clk 0:00:19]}  Ra1 {[%clk 0:00:02]} 57. Kb7 {[%clk 0:00:19]}  Rb1+ {[%clk 0:00:02]} 58. Ka8 {[%clk 0:00:18]}  Rh1 {[%clk 0:00:02]} 59. a7 {[%clk 0:00:18]}  h2 {[%clk 0:00:02]} 60. Kb8 {[%clk 0:00:18]}  Kg6 {[%clk 0:00:02]} 61. a8=Q {[%clk 0:00:10]}  Rb1+ {[%clk 0:00:03]} 62. Kc7 {[%clk 0:00:09]}  h1=Q {[%clk 0:00:02]} 63. Rxh1 {[%clk 0:00:10]}  Rxh1 {[%clk 0:00:02]} 64. Qe4+ {[%clk 0:00:09]}  Kg7 {[%clk 0:00:02]} 65. Qg4+ {[%clk 0:00:09]}  Kf8 {[%clk 0:00:02]} 66. Kd6 {[%clk 0:00:09]}  Rd1+ {[%clk 0:00:02]} 67. Ke5 {[%clk 0:00:09]}  Re1+ {[%clk 0:00:02]} 68. Kf6 {[%clk 0:00:09]}  Re6+ {[%clk 0:00:01]} 69. Qxe6 {[%clk 0:00:09]}  fxe6 {[%clk 0:00:02]} 70. Kxe6 {[%clk 0:00:09]}  Ke8 {[%clk 0:00:03]} 71. Kf6 {[%clk 0:00:09]}  Kf8 {[%clk 0:00:03]} 72. f4 {[%clk 0:00:10]}  Ke8 {[%clk 0:00:03]} 73. Kg7 {[%clk 0:00:09]}  Ke7 {[%clk 0:00:03]} 74. f5 {[%clk 0:00:10]}  Kd6 {[%clk 0:00:04]} 75. f6 {[%clk 0:00:10]}  Ke5 {[%clk 0:00:05]} 76. f7 {[%clk 0:00:11]}  Ke4 {[%clk 0:00:05]} 77. f8=Q {[%clk 0:00:12]}  Kd3 {[%clk 0:00:05]} 78. Qc5 {[%clk 0:00:12]} 1-0


[Site "https://www.chess.com"]